Workbook

Sheet Sheet1
B2: Normal Distribution X | F2: Normal Distribution Y | K2: Combined distribution X+Y
K3: (Note that the two distributions
B4: Mean = | D4: 9 | F4: Mean = | H4: 10 | K4: are independent.)
B5: SD = | D5: 2 | F5: SD = | H5: 3
B8: Sample Size 1000 | F8: Sample Size 1000
A10: Boundaries | B10: Random | C10: X | D10: Freq | F10: Random | G10: Y | H10: Freq | K10: X+Y | L10: Freq
A11: -15 | B11: 0.7055475116 | C11: =NORMINV(B11,$D$4,$D$5) -> 10.08084708 | D11: 0 | F11: 0.8942534328 | G11: =NORMINV(F11,$H$4,$H$5) -> 13.7484107 | H11: 0 | J11: =K11^2 -> 567.8335263 | K11: =C11+G11 -> 23.82925778 | L11: 0
A12: -14 | B12: 0.5334240198 | C12: =NORMINV(B12,$D$4,$D$5) -> 9.1677597 | D12: 0 | F12: 0.8662320375 | G12: =NORMINV(F12,$H$4,$H$5) -> 13.32626474 | H12: 0 | J12: =K12^2 -> 505.9811357 | K12: =C12+G12 -> 22.49402444 | L12: 0
A13: -13 | B13: 0.5795186162 | C13: 9.401324274 | D13: 0 | F13: 0.3843172193 | G13: 9.117515265 | H13: 0 | J13: 342.9474179 | K13: 18.51883954 | L13: 0
A14: -12 | B14: 0.2895624638 | C14: 7.890673237 | D14: 0 | F14: 0.9654986858 | G14: 15.45520766 | H14: 0 | J14: 545.0301549 | K14: 23.3458809 | L14: 0
A15: -11 | B15: 0.3019480109 | C15: 7.962387967 | D15: 0 | F15: 0.5031432509 | G15: 10.02363713 | H15: 0 | J15: 323.4970988 | K15: 17.9860251 | L15: 0
A16: -10 | B16: 0.7747400999 | C16: 10.50909745 | D16: 0 | F16: 0.9841426611 | G16: 16.44396517 | H16: 0 | J16: 726.4675844 | K16: 26.95306262 | L16: 0
A17: -9 | B17: 0.01401764154 | C17: 4.606415395 | D17: 0 | F17: 0.4468451142 | G17: 9.59909129 | H17: 0 | J17: 201.7964202 | K17: 14.20550669 | L17: 0
A18: -8 | B18: 0.7607235909 | C18: 10.41726418 | D18: 0 | F18: 0.779135704 | G18: 12.3078325 | H18: 0 | J18: 516.4300188 | K18: 22.72509667 | L18: 0
A19: -7 | B19: 0.8144900203 | C19: 10.78912891 | D19: 0 | F19: 0.308570087 | G19: 8.500277342 | H19: 0 | J19: 372.0811936 | K19: 19.28940625 | L19: 0
A20: -6 | B20: 0.7090379 | C20: 10.10115248 | D20: 0 | F20: 0.07884848118 | G20: 5.761420715 | H20: 0 | J20: 251.6212284 | K20: 15.8625732 | L20: 0
A21: -5 | B21: 0.04535275698 | C21: 5.616624381 | D21: 0 | F21: 0.8797686696 | G21: 13.52149348 | H21: 0 | J21: 366.2675551 | K21: 19.13811786 | L21: 0
A22: -4 | B22: 0.4140326977 | C22: 8.565633135 | D22: 0 | F22: 0.579241991 | G22: 10.59986407 | H22: 0 | J22: 367.3162831 | K22: 19.1654972 | L22: 0
A23: -3 | B23: 0.8626193404 | C23: 11.18432665 | D23: 0 | F23: 0.8616203666 | G23: 13.26288466 | H23: 0 | J23: 597.6661411 | K23: 24.44721132 | L23: 0
A24: -2 | B24: 0.7904800177 | C24: 10.61617586 | D24: 0 | F24: 0.8095902205 | G24: 12.62916168 | H24: 0 | J24: 540.3457177 | K24: 23.24533755 | L24: 0
A25: -1 | B25: 0.3735361695 | C25: 8.354995779 | D25: 0 | F25: 0.7678657174 | G25: 12.19550853 | H25: 0 | J25: 422.3232274 | K25: 20.55050431 | L25: 0
A26: 0 | B26: 0.9619531631 | C26: 12.547631 | D26: 0 | F26: 0.9239840508 | G26: 14.29717357 | H26: 0 | J26: 720.6435322 | K26: 26.84480457 | L26: 0
A27: 1 | B27: 0.8714458346 | C27: 11.26650453 | D27: 0 | F27: 0.05029457808 | G27: 5.073987725 | H27: 1 | J27: 267.0116873 | K27: 16.34049226 | L27: 0
A28: 2 | B28: 0.05623686314 | C28: 5.825656281 | D28: 1 | F28: 0.8248664141 | G28: 12.80221357 | H28: 6 | J28: 346.9975352 | K28: 18.62786985 | L28: 0
A29: 3 | B29: 0.9495566487 | C29: 12.28114004 | D29: 2 | F29: 0.2281406522 | G29: 7.765047563 | H29: 3 | J29: 401.8496374 | K29: 20.0461876 | L29: 0
A30: 4 | B30: 0.3640186787 | C30: 8.304525069 | D30: 4 | F30: 0.2748486996 | G30: 8.205359115 | H30: 11 | J30: 272.5762758 | K30: 16.50988418 | L30: 0
A31: 5 | B31: 0.5248684287 | C31: 9.124752664 | D31: 21 | F31: 0.05263227224 | G31: 5.140450584 | H31: 39 | J31: 203.4960237 | K31: 14.26520325 | L31: 0
A32: 6 | B32: 0.767111659 | C32: 10.45873569 | D32: 70 | F32: 0.9030584097 | G32: 13.89753111 | H32: 54 | J32: 593.2277322 | K32: 24.3562668 | L32: 0
A33: 7 | B33: 0.05350452662 | C33: 5.776432939 | D33: 115 | F33: 0.9879494309 | G33: 16.76653944 | H33: 78 | J33: 508.1856035 | K33: 22.54297237 | L33: 3
A34: 8 | B34: 0.5924582481 | C34: 9.467746183 | D34: 190 | F34: 0.2622680664 | G34: 8.090893882 | H34: 116 | J34: 308.3058409 | K34: 17.55864006 | L34: 1
A35: 9 | B35: 0.4687001109 | C35: 8.842924296 | D35: 228 | F35: 0.5398370624 | G35: 10.30006972 | H35: 122 | J35: 366.4542199 | K35: 19.14299402 | L35: 0
A36: 10 | B36: 0.2981654406 | C36: 7.940631533 | D36: 168 | F36: 0.3430553675 | G36: 8.787583928 | H36: 128 | J36: 279.8331925 | K36: 16.72821546 | L36: 5
A37: 11 | B37: 0.6226966977 | C37: 9.625142024 | D37: 102 | F37: 0.2131245732 | G37: 7.613120435 | H37: 134 | J37: 297.1576926 | K37: 17.23826246 | L37: 6
A38: 12 | B38: 0.647821188 | C38: 9.758889503 | D38: 57 | F38: 0.2012445927 | G38: 7.488448191 | H38: 97 | J38: 297.4706575 | K38: 17.24733769 | L38: 6
A39: 13 | B39: 0.263792932 | C39: 7.736608985 | D39: 33 | F39: 0.1294016242 | G39: 6.612327264 | H39: 91 | J39: 205.8919715 | K39: 14.34893625 | L39: 19
A40: 14 | B40: 0.2793420553 | C40: 7.830405669 | D40: 8 | F40: 0.6048792601 | G40: 10.79799115 | H40: 49 | J40: 347.0171682 | K40: 18.62839682 | L40: 49
A41: 15 | B41: 0.8298016191 | C41: 10.9067632 | D41: 1 | F41: 0.5861001611 | G41: 10.65257326 | H41: 39 | J41: 464.8049884 | K41: 21.55933646 | L41: 66
A42: 16 | B42: 0.8246021271 | C42: 10.86609383 | D42: 0 | F42: 0.8569760323 | G42: 13.20049447 | H42: 18 | J42: 579.2006726 | K42: 24.0665883 | L42: 76
A43: 17 | B43: 0.5891630054 | C43: 9.450784888 | D43: 0 | F43: 0.08823269606 | G43: 5.944844571 | H43: 7 | J43: 237.0254064 | K43: 15.39562946 | L43: 100
A44: 18 | B44: 0.9860931635 | C44: 13.39980895 | D44: 0 | F44: 0.2003098726 | G44: 7.47845527 | H44: 4 | J44: 435.901917 | K44: 20.87826422 | L44: 112
A45: 19 | B45: 0.9109643102 | C45: 11.6934341 | D45: 0 | F45: 0.634036839 | G45: 11.02769267 | H45: 1 | J45: 516.2496013 | K45: 22.72112676 | L45: 120
A46: 20 | B46: 0.2268660069 | C46: 7.50158455 | D46: 0 | F46: 0.4604804516 | G46: 9.702329827 | H46: 2 | J46: 295.9746699 | K46: 17.20391438 | L46: 105
A47: 21 | B47: 0.6951155066 | C47: 10.02080648 | D47: 0 | F47: 0.2857760787 | G47: 8.30269889 | H47: 0 | J47: 335.7508491 | K47: 18.32350537 | L47: 102
A48: 22 | B48: 0.9800032377 | C48: 13.10763157 | D48: 0 | F48: 0.8335098028 | G48: 12.90438432 | H48: 0 | J48: 676.6249707 | K48: 26.01201589 | L48: 80
A49: 23 | B49: 0.2439313531 | C49: 7.612575577 | D49: 0 | F49: 0.3069468141 | G49: 8.486429823 | H49: 0 | J49: 259.1779748 | K49: 16.0990054 | L49: 61
A50: 24 | B50: 0.5338730812 | C50: 9.170019001 | D50: 0 | F50: 0.9742212296 | G50: 15.84042942 | H50: 0 | J50: 625.5225302 | K50: 25.01044842 | L50: 33
A51: 25 | B51: 0.1063696742 | C51: 6.507863546 | D51: 0 | F51: 0.3971416354 | G51: 9.217742087 | H51: 0 | J51: 247.2946725 | K51: 15.72560563 | L51: 24
A52: 26 | B52: 0.9994145632 | C52: 15.49176398 | D52: 0 | F52: 0.7916494608 | G52: 12.43647346 | H52: 0 | J52: 779.9864468 | K52: 27.92823745 | L52: 17
A53: 27 | B53: 0.6761758924 | C53: 9.914063526 | D53: 0 | F53: 0.8058188558 | G53: 12.5877735 | H53: 0 | J53: 506.3326696 | K53: 22.50183703 | L53: 8
A54: 28 | B54: 0.01570391655 | C54: 4.696266053 | D54: 0 | F54: 0.6077320576 | G54: 10.82023852 | H54: 0 | J54: 240.761914 | K54: 15.51650457 | L54: 3
A55: 29 | B55: 0.5751838088 | C55: 9.379175002 | D55: 0 | F55: 0.356228292 | G55: 8.894323497 | H55: 0 | J55: 333.9207474 | K55: 18.2734985 | L55: 1
A56: 30 | B56: 0.1000522375 | C56: 6.43749206 | D56: 0 | F56: 0.5855320692 | G56: 10.64819969 | H56: 0 | J56: 291.9208627 | K56: 17.08569175 | L56: 2
A57: 31 | B57: 0.103022635 | C57: 6.470970166 | D57: 0 | F57: 0.6607432961 | G57: 11.24347771 | H57: 0 | J57: 313.8016635 | K57: 17.71444787 | L57: 0
A58: 32 | B58: 0.7988843918 | C58: 10.67528607 | D58: 0 | F58: 0.5832419395 | G58: 10.63058254 | H58: 0 | J58: 453.9400372 | K58: 21.30586861 | L58: 0 | Q58: Mean= | S58: =K1011 -> 19.01350143 | U58: Variance = | W58: =L1011 -> 11.77736926
A59: 33 | B59: 0.2844802737 | C59: 7.860833959 | D59: 0 | F59: 0.05884903669 | G59: 5.306472902 | H59: 0 | J59: 173.37797 | K59: 13.16730686 | L59: 1
A60: 34 | B60: 0.04564917088 | C60: 5.622823268 | D60: 0 | F60: 0.8402186632 | G60: 12.98607094 | H60: 0 | J60: 346.2909438 | K60: 18.60889421 | L60: 0
A61: 35 | B61: 0.2957728505 | C61: 7.926805086 | D61: 0 | F61: 0.05903702974 | G61: 5.311273753 | H61: 0 | J61: 175.2467313 | K61: 13.23807884 | L61: 0
A62: 36 | B62: 0.3820106983 | C62: 8.399591587 | D62: 0 | F62: 0.1513001919 | G62: 6.907381027 | H62: 0 | J62: 234.3034106 | K62: 15.30697261 | L62: 0
A63: 37 | B63: 0.3009704947 | C63: 7.956777387 | D63: 0 | F63: 0.3158559203 | G63: 8.562043562 | H63: 0 | J63: 272.8714455 | K63: 16.51882095 | L63: 0
A64: 38 | B64: 0.9485710859 | C64: 12.26230801 | D64: 0 | F64: 0.4356530905 | G64: 9.514001246 | H64: 0 | J64: 474.2076446 | K64: 21.77630925 | L64: 0
A65: 39 | B65: 0.979829371 | C65: 13.10047505 | D65: 0 | F65: 0.4233685136 | G65: 9.420149804 | H65: 0 | J65: 507.1785436 | K65: 22.52062485 | L65: 0
A66: 40 | B66: 0.4013743401 | C66: 8.500417224 | D66: 0 | F66: 0.8564014435 | G66: 13.19287155 | H66: 0 | J66: 470.5987777 | K66: 21.69328877 | L66: 0
B67: 0.2782799602 | C67: 7.82408232 | F67: 0.05626505613 | G67: 5.23923136 | J67: 170.6501643 | K67: 13.06331368
B68: 0.1604415178 | C68: 7.014710201 | F68: 0.8972870111 | G68: 13.79873 | J68: 433.199293 | K68: 20.8134402
B69: 0.1628215909 | C69: 7.034145243 | F69: 0.2398827672 | G69: 7.879960836 | J69: 222.4305601 | K69: 14.91410608
B70: 0.6465871334 | C70: 9.752245255 | F70: 0.05261063576 | G70: 5.139846296 | J70: 221.7743907 | K70: 14.89209155
B71: 0.4100732207 | C71: 8.54528674 | F71: 0.7803816199 | G71: 12.32044812 | J71: 435.3788911 | K71: 20.86573486
B72: 0.4127668142 | C72: 8.559133182 | F72: 0.03670489788 | G72: 4.629176541 | J72: 173.9315133 | K72: 13.18830972
B73: 0.7127304673 | C73: 10.12275839 | F73: 0.1363263726 | G73: 6.709077913 | J73: 283.3107132 | K73: 16.8318363
B74: 0.3262062073 | C74: 8.099173283 | F74: 0.6691880226 | G74: 11.31301648 | J74: 376.8331112 | K74: 19.41218976
B75: 0.6331788898 | C75: 9.680569181 | F75: 0.26292485 | G75: 8.096937436 | J75: 316.0397415 | K75: 17.77750662
B76: 0.2075611353 | C76: =NORMINV(B76,$D$4,$D$5) -> 7.370174556 | F76: 0.8422490358 | G76: =NORMINV(F76,$H$4,$H$5) -> 13.01123259 | J76: =K76^2 -> 415.4017572 | K76: =C76+G76 -> 20.38140714
B77: 0.1860135198 | C77: 7.214634309 | F77: 0.2101724744 | G77: 7.582531179 | J77: 218.9561065 | K77: 14.79716549
B78: 0.5833590031 | C78: 9.420988359 | F78: 0.2262141705 | G78: 7.745881667 | J78: 294.7014265 | K78: 17.16687003
B79: 0.080714643 | C79: 6.199438654 | F79: 0.5061530471 | G79: 10.04627204 | J79: 263.9231159 | K79: 16.24571069
B80: 0.4579714537 | C80: 8.788908848 | F80: 0.6196445227 | G80: 10.91364193 | J80: 388.1905072 | K80: 19.70255078
B81: 0.9057298303 | C81: 11.62981888 | F81: 0.6067457795 | G81: 10.81254205 | J81: 503.6595641 | K81: 22.44236093
B82: 0.2613682747 | C82: 7.721734417 | F82: 0.1002149582 | G82: 6.159016957 | J82: 192.6752587 | K82: 13.88075137
B83: 0.7852122188 | C83: 10.57983633 | F83: 0.9429885745 | G83: 14.74110091 | J83: 641.1498628 | K83: 25.32093724
B84: 0.3789025545 | C84: 8.383271309 | F84: 0.3826242685 | G84: 9.104212862 | J84: 305.8121026 | K84: 17.48748417
B85: 0.2896650434 | C85: 7.89127296 | F85: 0.3473475575 | G85: 8.8225256 | J85: 279.3510623 | K85: 16.71379856
B86: 0.9193770885 | C86: 11.80178767 | F86: 0.03978657722 | G86: 4.740495657 | J86: 273.6471376 | K86: 16.54228332
B87: 0.6317424178 | C87: 9.672943465 | F87: 0.890142858 | G87: 13.68186464 | J87: 545.4470617 | K87: 23.35480811
B88: 0.6276420355 | C88: 9.651229294 | F88: 0.4935539961 | G88: 9.951524684 | J88: 384.2679635 | K88: 19.60275398
B89: 0.4284563661 | C89: 8.639388985 | F89: 0.4073806405 | G89: 9.297135535 | J89: 321.7189119 | K89: 17.93652452
B90: 0.09797382355 | C90: 6.413633267 | F90: 0.9312205315 | G90: 14.45482885 | J90: 435.4927112 | K90: 20.86846212
B91: 0.5610401034 | C91: 9.307213554 | F91: 0.2512413859 | G91: 7.988234789 | J91: 299.1325334 | K91: 17.29544834
B92: 0.6944853067 | C92: 10.01720925 | F92: 0.5540572405 | G92: 10.40775623 | J92: 417.1792147 | K92: 20.42496548
B93: 0.9137175679 | C93: 11.72801717 | F93: 0.04447442293 | G93: 4.897093597 | J93: 276.3943079 | K93: 16.62511076
B94: 0.8348171711 | C94: 10.94675524 | F94: 0.8141286373 | G94: 12.6796412 | J94: 558.2066086 | K94: 23.62639644
B95: 0.02262920141 | C95: 4.995510274 | F95: 0.469948709 | G95: 9.773803615 | J95: 218.1326328 | K95: 14.76931389
B96: 0.5433605909 | C96: 9.217807536 | F96: 0.5456403494 | G96: 10.34396228 | J96: 382.6628384 | K96: 19.56176982
B97: 0.916163981 | C97: 11.75944542 | F97: 0.3766098619 | G97: 9.056809748 | J97: 433.3164791 | K97: 20.81625517
B98: 0.4302611351 | C98: 8.648581251 | F98: 0.1470680237 | G98: 6.852725758 | J98: 240.290519 | K98: 15.50130701
B99: 0.6779477 | C99: 9.923935075 | F99: 0.7330934405 | G99: 11.86658744 | J99: 474.8268714 | K99: 21.79052251
B100: 0.5024539232 | C100: 9.012302224 | F100: 0.2203174829 | G100: 7.686635743 | J100: 278.8545292 | K100: 16.69893797
B101: 0.5137374997 | C101: 9.068883226 | F101: 0.2102444768 | G101: 7.583280244 | J101: 277.2945482 | K101: 16.65216347
B102: 0.462980032 | C102: 8.814142245 | F102: 0.323166132 | G102: 8.623409804 | J102: 304.0682214 | K102: 17.43755205
B103: 0.3534726501 | C103: 8.248076413 | F103: 0.4237932563 | G103: 9.423403702 | J103: 312.2812095 | K103: 17.67148012
B104: 0.4048341513 | C104: 8.51829207 | F104: 0.7412356138 | G104: 11.94147826 | J104: 418.6022018 | K104: 20.45977033
B105: 0.2697315812 | C105: 7.772750009 | F105: 0.1184373498 | G105: 6.451496159 | J105: 202.3291791 | K105: 14.22424617
B106: 0.0555934906 | C106: 5.814238818 | F106: 0.4357457161 | G106: 9.514706967 | J106: 234.9765789 | K106: 15.32894578
B107: 0.2438451648 | C107: 7.612025898 | F107: 0.8245798945 | G107: 12.79888238 | J107: 416.6051769 | K107: 20.41090828
B108: 0.9790779352 | C108: 13.07013405 | F108: 0.5732995272 | G108: 10.55434249 | J108: 558.1158914 | K108: 23.62447653
B109: 0.06091624498 | C109: 5.905744884 | F109: 0.7689741254 | G109: 12.20641766 | J109: 328.0504321 | K109: 18.11216255
B110: 0.3902914524 | C110: 8.44288102 | F110: 0.2939498425 | G110: 8.37435351 | J110: 282.8193772 | K110: 16.81723453
B111: 0.36499542 | C111: 8.309724567 | F111: 0.07052415609 | G111: 5.584304761 | J111: 193.044051 | K111: 13.89402933
B112: 0.4898947477 | C112: 8.949334359 | F112: 0.6237968206 | G112: 10.94640394 | J112: 395.8404025 | K112: 19.8957383
B113: 0.1556630731 | C113: 6.975113409 | F113: 0.5024920106 | G113: 10.01873975 | J113: 288.7910453 | K113: 16.99385316
B114: 0.4744591713 | C114: 8.871869679 | F114: 0.68836689 | G114: 11.47367966 | J114: 413.9413779 | K114: 20.34554934
B115: 0.2572676539 | C115: 7.696415829 | F115: 0.3523609042 | G115: 8.863137132 | J115: 274.2187943 | K115: 16.55955296
B116: 0.628751874 | C116: 9.657098925 | F116: 0.6330229044 | G116: 11.01961095 | J116: 427.5263313 | K116: 20.67670988
B117: 0.54207021 | C117: 9.211301191 | F117: 0.160604775 | G117: 7.024073948 | J117: 263.5874059 | K117: 16.23537514
B118: 0.1563022137 | C118: 6.980455538 | F118: 0.90665555 | G118: 13.96131331 | J118: 438.5576826 | K118: 20.94176885
B119: 0.9385451674 | C119: 12.08534988 | F119: 0.3696140647 | G119: 9.001372965 | J119: 444.6498804 | K119: 21.08672285
B120: 0.6544994116 | C120: 9.794993516 | F120: 0.8149060011 | G120: 12.68836381 | J120: 505.5013567 | K120: 22.48335733
B121: 0.5060873628 | C121: 9.030518696 | F121: 0.1640277505 | G121: 7.065885823 | J121: 259.0942384 | K121: 16.09640452
B122: 0.3904714584 | C122: 8.443819075 | F122: 0.4991698265 | G122: 9.993757186 | J122: 339.9442184 | K122: 18.43757626
B123: 0.1073753238 | C123: 6.518784283 | F123: 0.0337216258 | G123: 4.513873763 | J123: 121.7195436 | K123: 11.03265805
B124: 0.7839952707 | C124: 10.57151538 | F124: 0.7476321459 | G124: 12.00117108 | J124: 509.526174 | K124: 22.57268646
B125: 0.459640801 | C125: 8.797322615 | F125: 0.8407028317 | G125: 12.99205195 | J125: 474.7768439 | K125: 21.78937456
B126: 0.753688097 | C126: 10.37228325 | F126: 0.2945840359 | G126: 8.379874016 | J126: 351.643402 | K126: 18.75215726
B127: 0.5960945487 | C127: 9.48650215 | F127: 0.4211606383 | G127: 9.403224477 | J127: 356.821772 | K127: 18.88972663
B128: 0.8327301741 | C128: 10.9300206 | F128: 0.5142701864 | G128: 10.10733305 | J128: 442.5702489 | K128: 21.03735366
B129: 0.01875835657 | C129: 4.839807667 | F129: 0.003923475742 | G129: 2.024244498 | J129: 47.11521212 | K129: 6.864052165
B130: 0.2103686333 | C130: 7.389714354 | F130: 0.665517807 | G130: 11.28270928 | J130: 348.6594044 | K130: 18.67242363
B131: 0.07395333052 | C131: 6.106069533 | F131: 0.9765722156 | G131: 15.96281023 | J131: 487.035454 | K131: 22.06887976
B132: 0.1054526567 | C132: 6.49784012 | F132: 0.09339678288 | G132: 6.039627504 | J132: 157.1880944 | K132: 12.53746762
B133: 0.3316944242 | C133: 8.129521701 | F133: 0.780459702 | G133: 12.32124011 | J133: 418.2336586 | K133: 20.45076181
B134: 0.1282498837 | C134: 6.73059394 | F134: 0.04416108131 | G134: 4.88705353 | J134: 134.9697327 | K134: 11.61764747
B135: 0.0002412199974 | C135: 2.019357238 | F135: 0.9658865333 | G135: 15.47051514 | J135: 305.8956358 | K135: 17.48987238
B136: 0.5367940664 | C136: 9.184720382 | F136: 0.9997214079 | G136: 20.35492928 | J136: 872.5909023 | K136: 29.53964967
B137: 0.6570549607 | C137: 9.808877585 | F137: 0.6886830926 | G137: 11.47636297 | J137: 453.0614655 | K137: 21.28524055
B138: 0.5440139771 | C138: 9.221102907 | F138: 0.6878991127 | G138: 11.46971225 | J138: 428.1098317 | K138: 20.69081515
B139: 0.8274118304 | C139: 10.88797381 | F139: 0.1794478297 | G139: 7.247585722 | J139: 328.8985197 | K139: 18.13555954
B140: 0.08189356327 | C140: =NORMINV(B140,$D$4,$D$5) -> 6.215106305 | F140: 0.1747113466 | G140: =NORMINV(F140,$H$4,$H$5) -> 7.192871006 | J140: =K140^2 -> 179.7738556 | K140: =C140+G140 -> 13.40797731
B141: 0.1919224858 | C141: 7.258332637 | F141: 0.966691792 | G141: 15.50275963 | J141: 518.0673214 | K141: 22.76109227
B142: 0.6789133549 | C142: 9.929324656 | F142: 0.6949374676 | G142: 11.52968483 | J142: 460.4890881 | K142: 21.45900949
B143: 0.4542078376 | C143: 8.769925698 | F143: 0.8851394057 | G143: 13.60323212 | J143: 500.5581909 | K143: 22.37315782
B144: 0.3570231199 | C144: 8.267145368 | F144: 0.1272166967 | G144: 6.581058982 | J144: 220.4691724 | K144: 14.84820435
B145: 0.1499810815 | C145: 6.926970934 | F145: 0.1504355073 | G145: 6.896297989 | J145: 191.0827637 | K145: 13.82326892
B146: 0.704395771 | C146: 10.07417128 | F146: 0.2699270248 | G146: 8.160898867 | J146: 332.5177834 | K146: 18.23507015
B147: 0.9287859797 | C147: 11.93361785 | F147: 0.03150862455 | G147: 4.422790681 | J147: 267.5321002 | K147: 16.35640854
B148: 0.5302125216 | C148: 9.151608193 | F148: 0.3240953684 | G148: 8.631168732 | J148: 316.2271552 | K148: 17.78277693
B149: 0.08964139223 | C149: 6.314066771 | F149: 0.901840508 | G149: 13.8763306 | J149: 407.652146 | K149: 20.19039737
B150: 0.7577292919 | C150: 10.39803397 | F150: 0.2395889759 | G150: 7.877123977 | J150: 333.981398 | K150: 18.27515795
B151: 0.4018420577 | C151: 8.502835953 | F151: 0.700891912 | G151: 11.58090242 | J151: 403.3565471 | K151: 20.08373837
B152: 0.4618743658 | C152: 8.808574543 | F152: 0.8308380842 | G152: 12.87244716 | J152: 470.0667023 | K152: 21.68102171
B153: 0.4921656251 | C153: 8.960721744 | F153: 0.0869346261 | G153: 5.920372808 | J153: 221.4469751 | K153: 14.88109455
B154: 0.2076272964 | C154: 7.370636816 | F154: 0.8183398247 | G154: 12.72716923 | J154: 403.9218078 | K154: 20.09780604
B155: 0.3297359347 | C155: 8.11871511 | F155: 0.8125397563 | G155: 12.66188282 | J155: 431.8332504 | K155: 20.78059793
B156: 0.09542906284 | C156: 6.383910466 | F156: 0.2021933794 | G156: 7.498563077 | J156: 192.7230717 | K156: 13.88247354
B157: 0.5897925496 | C157: 9.454022741 | F157: 0.1039722562 | G157: 6.222287101 | J157: 245.7466902 | K157: 15.67630984
B158: 0.169873476 | C158: 7.090669277 | F158: 0.6239163876 | G158: 10.94734899 | J158: 325.370103 | K158: 18.03801827
B159: 0.9276165366 | C159: 11.91653426 | F159: 0.07574170828 | G159: 5.697065779 | J159: 310.2389063 | K159: 17.61360004
B160: 0.09792983532 | C160: 6.413124325 | F160: 0.6227926016 | G160: 10.93847036 | J160: 301.077838 | K160: 17.35159468
B161: 0.4438624978 | C161: 8.717633038 | F161: 0.4615593553 | G161: 9.710482006 | J161: 339.5954241 | K161: 18.42811504
B162: 0.2729468346 | C162: 7.792150488 | F162: 0.9430007935 | G162: 14.74142126 | J162: 507.7618557 | K162: 22.53357175
B163: 0.8725468516 | C163: 11.27702618 | F163: 0.1929513812 | G163: 7.398785102 | J163: 348.7859269 | K163: 18.67581128
B164: 0.7506877184 | C164: 10.35331098 | F164: 0.2977749109 | G164: 8.407567282 | J164: 351.9705532 | K164: 18.76087826
B165: 0.2729423642 | C165: 7.792123594 | F165: 0.6067784429 | G165: 10.81279685 | J165: 346.1430648 | K165: 18.60492045
B166: 0.6736466885 | C166: 9.900010589 | F166: 0.2468454838 | G166: 7.946649598 | J166: 318.5032798 | K166: 17.84666019
B167: 0.2566289306 | C167: 7.69245337 | F167: 0.3129114509 | G167: 8.53715641 | J167: 263.4002336 | K167: 16.22960978
B168: 0.08989655972 | C168: 6.31721542 | F168: 0.09341228008 | G168: 6.03990603 | J168: 152.6984505 | K168: 12.35712145
B169: 0.03095060587 | C169: 5.265994613 | F169: 0.003313601017 | G169: 1.854943782 | J169: 50.70776362 | K169: 7.120938395
B170: 0.3227176666 | C170: 8.079774613 | F170: 0.9568982124 | G170: 15.14731937 | J170: 539.4978949 | K170: 23.22709398
B171: 0.7901288867 | C171: 10.61373708 | F171: 0.7337786555 | G171: 11.87284469 | J171: 505.6463597 | K171: 22.48658177
B172: 0.2972580194 | C172: 7.935393665 | F172: 0.4277344942 | G172: 9.453565206 | J172: 302.3758906 | K172: 17.38895887
B173: 0.2352822423 | C173: 7.556878196 | F173: 0.4595754743 | G173: 9.69549014 | J173: 297.6442132 | K173: 17.25236834
B174: 0.4804747105 | C174: 8.902075603 | F174: 0.4604270458 | G174: 9.701926237 | J174: 346.1088845 | K174: 18.60400184
B175: 0.2546018958 | C175: 7.679844049 | F175: 0.856248796 | G175: 13.19084987 | J175: 435.5858649 | K175: 20.87069392
B176: 0.3406065702 | C176: 8.178383492 | F176: 0.411154151 | G176: 9.326268779 | J176: 306.4128511 | K176: 17.50465227
B177: 0.04493385553 | C177: 5.607808106 | F177: 0.7068262696 | G177: 11.63240987 | J177: 297.2251157 | K177: 17.24021797
B178: 0.4824280739 | C178: 8.911878923 | F178: 0.3761453629 | G178: 9.053139093 | J178: 322.7418723 | K178: 17.96501802
B179: 0.2060171962 | C179: 7.359362402 | F179: 0.3866817355 | G179: 9.136065576 | J179: 272.0991442 | K179: 16.49542798
B180: 0.8645344973 | C180: 11.20184217 | F180: 0.2370916605 | G180: 7.852932594 | J180: 363.0844411 | K180: 19.05477476
B181: 0.5886285901 | C181: 9.448037227 | F181: 0.2273047566 | G181: 7.756742776 | J181: 296.0044549 | K181: 17.20478
B182: 0.7549083233 | C182: 10.38003446 | F182: 0.06983685493 | G182: 5.568978429 | J182: 254.371012 | K182: 15.94901288
B183: 0.9278830886 | C183: 11.92040941 | F183: 0.7902263999 | G183: 12.42162117 | J183: 592.5344529 | K183: 24.34203058
B184: 0.3310168982 | C184: 8.125786125 | F184: 0.8226002455 | G184: 12.77595982 | J184: 436.8829837 | K184: 20.90174595
B185: 0.542941153 | C185: 9.215692401 | F185: 0.3323512673 | G185: 8.699710515 | J185: 320.9616617 | K185: 17.91540292
B186: 0.08069133759 | C186: 6.199127193 | F186: 0.419980526 | G186: 9.394170104 | J186: 243.1509206 | K186: 15.5932973
B187: 0.6343719363 | C187: 9.686910164 | F187: 0.9939457774 | G187: 17.52690401 | J187: 740.5916819 | K187: 27.21381417
B188: 0.4100366831 | C188: 8.545098769 | F188: 0.698990941 | G188: 11.56450167 | J188: 404.3960298 | K188: 20.10960044
B189: 0.9604228139 | C189: 12.51122762 | F189: 0.4905326962 | G189: 9.928800283 | J189: 503.5548525 | K189: 22.44002791
B190: 0.1146233082 | C190: 6.595396382 | F190: 0.8333756924 | G190: 12.90277335 | J190: 380.178623 | K190: 19.49816973
B191: 0.9234451652 | C191: 11.85726652 | F191: 0.3399419188 | G191: 8.762135054 | J191: 425.1597212 | K191: 20.61940157
B192: 0.6202095747 | C192: 9.612062505 | F192: 0.1524575949 | G192: 6.922150235 | J192: 273.3801909 | K192: 16.53421274
B193: 0.3477264047 | C193: 8.217067983 | F193: 0.9057675004 | G193: 13.94540086 | J193: 491.1750253 | K193: 22.16246884
B194: 0.149245739 | C194: 6.920652404 | F194: 0.510766983 | G194: 10.0809763 | J194: 289.0553787 | K194: 17.00162871
B195: 0.4799782634 | C195: 8.899583725 | F195: 0.7884809375 | G195: 12.40348466 | J195: 453.8207227 | K195: 21.30306839
B196: 0.2194091082 | C196: 7.45161924 | F196: 0.6147018671 | G196: 10.87478513 | J196: 335.8570971 | K196: 18.32640437
B197: 0.9937313199 | C197: 13.99329451 | F197: 0.3454506993 | G197: 8.807103715 | J197: 519.8581593 | K197: 22.80039823
B198: 0.1304204464 | C198: 6.751188306 | F198: 0.9624693394 | G198: 15.34026838 | J198: 488.0324585 | K198: 22.09145669
B199: 0.02888578176 | C199: 5.205145372 | F199: 0.3711180091 | G199: 9.013318828 | J199: 202.1647242 | K199: 14.2184642
B200: 0.3453916311 | C200: 8.204415315 | F200: 0.3035582304 | G200: 8.457418423 | J200: 277.6167035 | K200: 16.66183374
B201: 0.5476685166 | C201: 9.23954601 | F201: 0.2185788751 | G201: 7.668994812 | J201: 285.8987528 | K201: 16.90854082
B202: 0.9229545593 | C202: 11.85045893 | F202: 0.7739930153 | G202: 12.25618503 | J202: 581.130283 | K202: 24.10664396
B203: 0.5382463336 | C203: 9.19203334 | F203: 0.893822372 | G203: 13.74134563 | J203: 525.9398712 | K203: 22.93337898
B204: 0.4064213037 | C204: =NORMINV(B204,$D$4,$D$5) -> 8.526479028 | F204: 0.1136189699 | G204: =NORMINV(F204,$H$4,$H$5) -> 6.377486708 | J204: =K204^2 -> 222.1281947 | K204: =C204+G204 -> 14.90396574
... 807 more rows

Sheet Sheet2
A1: Input Range | B1: Bin Range
A2: 87 | B2: 20 | F2: Bin Range | G2: Frequency
A3: 27 | B3: 40 | F3: 20 | G3: 2
A4: 45 | B4: 60 | F4: 40 | G4: 1
A5: 62 | B5: 80 | F5: 60 | G5: 3
A6: 3 | F6: 80 | G6: 3
A7: 52 | F7: More | G7: 1
A8: 20
A9: 43
A10: 74
A11: 61

Sheet Sheet3
